bitfinex/quotes_SOLUSD_20240705
["timestamp","ask_amount","ask_price","bid_price","bid_amount"]
[1720178409304,8.0656668,129.18,129.11,20.0]
[1720178410119,8.0656668,129.18,129.07,7.7473]
[1720178410329,15.8069668,129.18,129.08,7.747]
[1720178410634,8.0656668,129.18,129.09,7.7464]
[1720178411339,0.17,129.17,129.1,7.7457]
[1720178411543,8.0656668,129.18,129.1,100.0]
[1720178411839,14.0918,129.23,129.14,7.7429]
[1720178411999,14.0918,129.23,129.11,20.0]
[1720178412000,8.06565847,129.21,129.15,7.7427]
[1720178412199,8.06565847,129.21,129.11,20.0]
[1720178412404,8.06565847,129.21,129.14,7.7429]
[1720178412706,30.8764,129.26,129.16,7.7421]
[1720178412929,6.6055,129.27,129.18,7.7409]
[1720178413130,8.06149391,129.25,129.17,20.0]
[1720178413306,8.06149391,129.25,129.17,27.7416]
[1720178413940,8.06149391,129.25,129.17,20.0]
[1720178414233,8.06149391,129.25,129.18,7.7406]
[1720178414542,8.06149391,129.25,129.2,7.7398]
[1720178414740,8.06149391,129.25,129.19,7.7403]
[1720178415039,8.06149391,129.25,129.2,20.0]
[1720178415645,8.06149391,129.25,129.16,7.7421]
[1720178415936,8.06149391,129.25,129.17,20.0]
[1720178416145,8.06149391,129.25,129.21,7.7393]
[1720178416521,8.06149391,129.25,129.22,27.7383]
[1720178416724,14.3626,129.31,129.22,7.7383]
[1720178417033,8.05743131,129.29,129.22,7.7387]
[1720178417546,5.04158401,129.31,129.25,7.7365]
[1720178417743,14.3713,129.35,129.26,20.0]
[1720178417923,8.0634711,129.33,129.26,27.7363]
[1720178418628,8.0634711,129.33,129.26,27.7359]
[1720178418836,8.0634711,129.33,129.26,20.0]
[1720178419053,7.7291,129.38,129.28,7.7351]
[1720178419347,6.4177,129.39,129.26,7.7363]
[1720178419348,15.78471558,129.36,129.26,7.7363]
[1720178419525,15.78471558,129.36,129.27,20.0]
[1720178419719,8.05411558,129.36,129.23,6.5083]
[1720178419916,8.05411558,129.36,129.19,6.1321]
[1720178419917,19.3294,129.34,129.19,6.1321]
[1720178420226,7.7333,129.32,129.21,7.7391]
[1720178420421,7.734,129.3,129.2,7.7398]
[1720178420620,7.734,129.3,129.18,16.2922]
[1720178420621,0.17,129.29,129.18,16.2922]
[1720178420929,7.7351,129.28,129.18,7.7409]
[1720178421126,0.17,129.27,129.18,7.7409]
[1720178421327,7.9057,129.27,129.17,7.7416]
[1720178421520,0.17,129.27,129.18,7.741]
[1720178421723,0.17,129.27,129.17,100.0]
[1720178422043,0.17,129.27,129.19,7.7403]
[1720178422234,0.17,129.28,129.2,7.7398]
[1720178422428,0.17,129.29,129.16,100.0]
[1720178422633,7.9045,129.29,129.16,100.0]
[1720178422829,0.17,129.29,129.2,7.7399]
[1720178424361,7.9046,129.29,129.19,7.7403]
[1720178425265,7.7351,129.28,129.19,7.7403]
[1720178425438,0.17,129.27,129.16,100.0]
[1720178425638,0.17,129.27,129.18,7.7406]
[1720178425839,0.17,129.27,129.19,20.0]
[1720178426058,0.17,129.27,129.19,27.7404]
[1720178426452,0.17,129.28,129.14,126.91311015]
[1720178426650,7.7367,129.26,129.16,7.7417]
[1720178426861,0.17,129.25,129.16,7.7417]
[1720178427035,7.9069,129.25,129.16,7.7417]
[1720178427236,0.17,129.25,129.14,6.1321]
[1720178427463,0.17,129.25,129.13,7.744]
[1720178427838,19.3441,129.24,129.11,7.7452]
[1720178428161,7.7398,129.21,129.12,7.7447]
[1720178428341,0.17,129.2,129.11,7.745]
[1720178428539,0.17,129.2,129.09,4.94299273]
[1720178428764,7.7422,129.17,129.05,6.5626]
[1720178429061,0.17,129.16,129.07,7.7476]
[1720178429363,0.17,129.16,129.08,7.747]
[1720178429567,8.06840288,129.16,129.07,7.7475]
[1720178429768,0.17,129.15,129.08,7.747]
[1720178429972,0.17,129.15,129.09,20.0]
[1720178430260,0.17,129.15,129.08,7.747]
[1720178430456,0.17,129.15,129.09,7.7464]
[1720178431161,0.17,129.15,129.09,100.0]
[1720178431649,0.17,129.15,129.1,20.0]
[1720178432052,0.17,129.15,129.1,27.7455]
[1720178432448,0.17,129.15,129.1,27.7458]
[1720178432650,0.17,129.15,129.11,7.7453]
[1720178433174,8.06658103,129.18,129.12,20.0]
[1720178433360,8.06658103,129.18,129.13,7.7439]
[1720178434051,8.06658103,129.18,129.15,7.7429]
[1720178434259,6.6115,129.25,129.16,7.7423]
[1720178434455,6.6115,129.25,129.17,27.7416]
[1720178434456,8.06404383,129.24,129.17,27.7416]
[1720178434765,8.06404383,129.24,129.17,20.0]
[1720178435065,8.06404383,129.24,129.15,27.7426]
[1720178435472,7.7407,129.19,129.15,20.0]
[1720178435664,7.7407,129.19,129.1,13.9262]
[1720178435665,7.7388,129.22,129.11,20.0]
[1720178435844,0.17,129.21,129.13,7.7437]
[1720178436046,0.17,129.22,129.14,20.0]
[1720178436647,7.9087,129.22,129.14,20.0]
[1720178436870,7.7394,129.21,129.12,7.7445]
[1720178437073,0.17,129.2,129.13,20.0]
[1720178437443,0.17,129.2,129.11,20.0]
[1720178437645,0.17,129.2,129.12,7.7445]
[1720178437873,0.17,129.2,129.13,20.0]
[1720178438051,0.17,129.21,129.13,20.0]
[1720178438248,7.9095,129.21,129.13,20.0]
[1720178438466,7.9095,129.21,129.12,20.0]
[1720178438847,0.17,129.21,129.12,27.7446]
[1720178439047,7.9095,129.21,129.12,20.0]
[1720178440176,0.17,129.21,129.14,7.7435]
[1720178441153,0.17,129.21,129.15,20.0]
[1720178441351,0.17,129.21,129.15,27.7427]
[1720178441656,8.06404383,129.24,129.15,27.7427]
[1720178441861,8.06404383,129.24,129.17,7.7412]
[1720178442064,8.06404383,129.24,129.16,7.7421]
[1720178442464,8.06404383,129.24,129.15,20.0]
[1720178442666,8.06404383,129.24,129.15,7.7428]
[1720178442959,8.06404383,129.24,129.16,27.7422]
[1720178443278,8.06404383,129.24,129.19,123.14]
[1720178443480,6.4854,129.29,129.22,7.7386]
[1720178445858,6.4854,129.29,129.23,7.738]
[1720178446069,20.9388,129.33,129.24,20.0]
[1720178446264,20.9388,129.33,129.24,27.7371]
[1720178446573,20.9388,129.33,129.26,7.7359]
[1720178446757,20.9388,129.33,129.25,7.7367]
[1720178446953,20.9388,129.33,129.26,20.0]
[1720178447156,20.9388,129.33,129.26,27.7363]
[1720178447469,20.9388,129.33,129.19,123.14]
[1720178447670,20.9388,129.33,129.25,7.7368]
[1720178447855,20.9388,129.33,129.24,7.7373]
[1720178448263,20.9388,129.33,129.26,7.7359]
[1720178448461,20.9388,129.33,129.25,7.7368]
[1720178448683,20.9388,129.33,129.26,20.0]
[1720178449191,28.671,129.33,129.25,20.0]
[1720178449361,28.671,129.33,129.23,27.7379]
[1720178449564,20.9388,129.33,129.24,7.7375]
[1720178449878,0.17,129.32,129.25,20.0]
[1720178450084,0.17,129.32,129.25,27.7369]
[1720178450273,20.9388,129.33,129.25,27.7369]
[1720178450581,20.9388,129.33,129.25,27.7367]
[1720178451460,6.312,129.33,129.25,20.0]
[1720178451773,6.312,129.33,129.27,7.7351]
[1720178451976,6.312,129.33,129.28,20.0]
[1720178452687,6.312,129.33,129.28,27.7351]
[1720178452874,6.312,129.33,129.28,20.0]
[1720178453079,8.06036512,129.36,129.28,27.7351]
[1720178453391,20.96344562,129.36,129.28,20.0]
[1720178453593,20.96344562,129.36,129.26,7.7361]
[1720178453890,20.96344562,129.36,129.27,20.0]
[1720178454076,13.23294562,129.36,129.27,27.7356]
[1720178454392,0.17,129.35,129.27,27.7356]
[1720178454978,8.06036512,129.36,129.29,7.7343]
[1720178455500,21.2313,129.37,129.29,7.7343]
[1720178456283,0.17,129.36,129.29,7.7343]
[1720178457991,0.17,129.36,129.28,7.735]
[1720178458199,0.17,129.36,129.29,20.0]
[1720178459005,7.9004,129.36,129.28,20.0]
[1720178459291,0.17,129.36,129.28,7.7349]
[1720178459498,0.17,129.36,129.29,20.0]
[1720178460681,0.17,129.36,129.29,27.7345]
[1720178460880,0.17,129.36,129.29,20.0]
[1720178461182,0.17,129.36,129.3,7.7338]
[1720178461382,21.2313,129.37,129.31,7.7332]
[1720178461900,21.2313,129.37,129.3,107.7337]
[1720178462203,21.2313,129.37,129.31,20.0]
[1720178462896,0.17,129.36,129.31,20.0]
[1720178463107,0.17,129.36,129.27,27.7353]
[1720178463291,0.17,129.36,129.28,7.735]
[1720178463490,0.17,129.36,129.29,20.0]
[1720178464312,7.7321,129.33,129.23,107.7379]
[1720178464484,7.7349,129.29,129.21,34.47]
[1720178464683,0.17,129.32,129.22,100.0]
[1720178465003,0.17,129.32,129.23,7.738]
[1720178465200,0.17,129.32,129.21,34.47]
[1720178465201,44.309,129.3,129.21,34.47]
[1720178465382,44.309,129.3,129.14,6.2662]
[1720178465383,57.61,129.27,129.14,6.2662]
[1720178465581,57.61,129.27,129.13,15.2728]
[1720178465582,7.7381,129.23,129.13,7.7436]
[1720178465787,0.17,129.22,129.13,7.7439]
[1720178466005,0.17,129.22,129.14,7.7434]
[1720178466179,0.17,129.22,129.13,100.0]
[1720178466376,0.17,129.22,129.16,7.7419]
[1720178466607,0.17,129.22,129.15,100.0]
[1720178466988,0.17,129.22,129.17,7.7416]
[1720178467195,0.17,129.22,129.16,7.7421]
[1720178467519,0.17,129.22,129.17,20.0]
[1720178467682,0.17,129.22,129.16,20.0]
[1720178468589,0.17,129.22,129.16,27.7422]
[1720178469504,0.17,129.22,129.17,7.7416]
[1720178469699,0.17,129.22,129.18,20.0]
[1720178470213,8.06174479,129.26,129.18,20.0]
[1720178470512,6.5873,129.27,129.19,7.7401]
[1720178470821,6.5873,129.27,129.2,7.7398]
[1720178471008,6.5873,129.27,129.12,100.0]
[1720178471186,6.5873,129.27,129.14,7.743]
[1720178471187,7.7379,129.24,129.14,7.743]
[1720178471393,31.30908161,129.27,129.12,23.14]
[1720178471586,31.30908161,129.27,129.13,100.0]
[1720178471819,8.16908161,129.27,129.13,100.0]
[1720178471994,8.16908161,129.27,129.12,23.14]
[1720178472205,7.7371,129.25,129.16,7.7423]
[1720178472423,0.17,129.24,129.17,20.0]
[1720178472919,0.17,129.24,129.11,123.14]
[1720178473117,0.17,129.25,129.11,123.14]
[1720178474026,37.7668,129.24,129.09,15.2728]
[1720178474202,7.7406,129.19,129.09,7.7463]
[1720178474402,0.17,129.18,129.1,7.7458]
[1720178474909,0.17,129.18,129.11,7.7451]
[1720178475116,0.17,129.18,129.1,7.7457]
[1720178475292,0.17,129.19,129.1,7.7457]
[1720178475491,0.17,129.19,129.07,100.0]
[1720178475694,0.17,129.2,129.1,7.7458]
[1720178476019,0.17,129.21,129.1,7.7458]
[1720178476226,0.17,129.21,129.09,123.14]
[1720178476396,6.4953,129.23,129.15,7.7424]
[1720178476598,6.4953,129.23,129.13,100.0]
[1720178476798,6.4953,129.23,129.14,20.0]
[1720178477010,6.4953,129.23,129.12,20.0]
[1720178477211,7.7391,129.22,129.12,7.7443]
[1720178477528,7.7391,129.22,129.13,20.0]
[1720178478021,29.6353,129.23,129.07,100.0]
[1720178478355,7.7413,129.18,129.08,7.7466]
[1720178478515,0.17,129.17,129.08,7.7469]
[1720178479920,0.17,129.17,129.09,20.0]
[1720178480120,0.17,129.17,129.09,27.7465]
[1720178480313,0.17,129.17,129.09,20.0]
[1720178480503,26.31444526,129.22,129.09,20.0]
[1720178480705,7.7415,129.18,129.09,20.0]
[1720178481105,23.14,129.19,129.09,20.0]
[1720178481307,21.0907,129.2,129.07,20.0]
[1720178481513,7.7417,129.17,129.08,7.747]
[1720178481702,0.17,129.16,129.09,20.0]
[1720178482231,0.17,129.16,129.05,7.7487]
[1720178482443,6.2574,129.13,129.05,7.7487]
[1720178482815,0.17,129.12,129.05,7.7487]
[1720178483230,0.17,129.12,129.01,100.42402323]
[1720178483231,14.6268,129.11,129.01,100.42402323]
[1720178483438,0.17,129.1,129.01,0.42402323]
[1720178483735,0.17,129.1,129.03,7.7496]
[1720178483908,0.17,129.1,129.01,0.42402323]
[1720178484317,14.2648,129.09,129.01,0.42402323]
[1720178484639,0.17,129.08,129.01,0.42402323]
[1720178485017,23.14,129.05,128.95,0.8723684]
[1720178485235,7.7507,129.02,128.95,0.8723684]
[1720178485439,7.7514,129.01,128.95,0.8723684]
[1720178485747,0.17,129.0,128.95,0.8723684]
[1720178486110,14.3728,129.0,128.95,0.8723684]
[1720178486728,0.17,129.0,128.95,0.8723684]
[1720178486921,0.17,129.0,128.95,8.6269684]
[1720178487128,0.17,129.0,128.95,0.8723684]
[1720178488448,0.17,129.01,128.95,0.8723684]
[1720178488738,0.17,129.02,128.95,0.8723684]
[1720178489928,0.17,129.03,128.95,0.8723684]
[1720178490245,15.07965245,129.02,128.95,0.8723684]
[1720178490540,20.0,129.01,128.95,0.8723684]
[1720178490722,7.7532,128.98,128.95,0.8723684]
[1720178491245,7.7549,128.96,128.88,0.2069293]
[1720178491550,8.07545428,128.97,128.88,0.2069293]
[1720178491725,0.17,128.96,128.88,0.2069293]
[1720178492225,7.9248,128.96,128.88,0.2069293]
[1720178492627,0.17,128.96,128.88,0.2069293]
[1720178492830,7.755,128.95,128.88,0.2069293]
[1720178493020,0.17,128.94,128.88,0.2069293]
[1720178493621,8.07545428,128.97,128.88,0.2069293]
[1720178493622,0.17,128.95,128.88,0.2069293]
[1720178493820,8.07545428,128.97,128.88,0.2069293]
[1720178494239,12.89236098,129.01,128.91,7.7572]
[1720178494457,7.755,128.95,128.88,0.2069293]
[1720178494616,8.0733413,128.99,128.88,0.2069293]
[1720178494617,27.4551413,128.99,128.88,0.2069293]
[1720178495022,7.7547,128.96,128.88,0.2069293]
[1720178495315,37.89827536,128.99,128.88,0.2069293]
[1720178495316,7.7538,128.97,128.88,0.2069293]
[1720178495529,7.9243,128.96,128.88,0.2069293]
[1720178495937,7.7549,128.95,128.88,0.2069293]
[1720178496141,7.9245,128.96,128.88,0.2069293]
[1720178496334,0.17,128.96,128.88,0.2069293]
[1720178497231,7.7551,128.95,128.88,0.2069293]
[1720178497428,0.17,128.94,128.88,0.2069293]
[1720178497752,0.17,128.94,128.88,7.9655293]
[1720178497928,0.17,128.94,128.88,0.2069293]
[1720178498130,7.9255,128.94,128.88,0.2069293]
[1720178498429,0.17,128.94,128.88,0.2069293]
[1720178498851,7.925,128.95,128.88,0.2069293]
[1720178499323,7.7563,128.93,128.88,0.2069293]
[1720178499648,0.17,128.92,128.88,0.2069293]
[1720178500037,0.17,128.93,128.88,0.2069293]
[1720178500248,0.17,128.94,128.88,0.2069293]
[1720178501249,7.9256,128.94,128.88,0.2069293]
[1720178501633,0.17,128.94,128.88,0.2069293]
[1720178502838,7.7561,128.93,128.88,0.2069293]
[1720178503043,0.17,128.92,128.88,0.2069293]
[1720178503240,7.7574,128.91,128.88,0.2069293]
[1720178503566,0.17,128.9,128.88,0.2069293]
[1720178504450,0.17,128.91,128.88,0.2069293]
[1720178504624,0.17,128.92,128.88,0.2069293]
[1720178504953,8.24353496,128.93,128.88,0.2069293]
[1720178505830,8.07353496,128.93,128.88,0.2069293]
[1720178506650,7.7545,128.96,128.88,0.2069293]
[1720178506846,10.44313406,128.99,128.88,0.2069293]
[1720178507034,8.07098069,128.98,128.89,7.7584]
[1720178507734,8.07098069,128.98,128.88,19.6041293]
[1720178507953,7.7537,128.97,128.88,27.3632293]
[1720178508133,8.07098069,128.98,128.88,19.6041293]
[1720178508463,8.07098069,128.98,128.91,6.0409]
[1720178508637,8.07098069,128.98,128.91,13.798]
[1720178508839,10.44313406,128.99,128.91,13.798]
[1720178509063,10.44313406,128.99,128.91,6.0409]
[1720178509557,18.19573406,128.99,128.91,6.0409]
[1720178509739,10.44313406,128.99,128.91,6.0409]
[1720178509942,10.44313406,128.99,128.91,22.4797]
[1720178510462,18.19573406,128.99,128.91,22.4797]
[1720178510655,7.7532,128.98,128.91,22.4797]
[1720178510836,0.17,128.97,128.91,22.4797]
[1720178511246,0.17,128.98,128.91,22.4797]
[1720178511641,7.9231,128.98,128.91,22.4797]
[1720178512160,7.7538,128.97,128.91,22.4797]
[1720178512364,7.9244,128.96,128.88,0.2069293]
[1720178512546,7.7544,128.96,128.88,0.2069293]
[1720178512740,0.17,128.95,128.88,0.2069293]
[1720178513155,7.925,128.95,128.88,0.2069293]
[1720178513355,0.17,128.95,128.88,0.2069293]
[1720178514265,7.9244,128.96,128.88,0.2069293]
[1720178515887,7.7533,128.98,128.88,19.6045293]
[1720178516060,8.06992079,129.0,128.9,7.7575]
[1720178516445,8.06992079,129.0,128.92,100.0]
[1720178516639,7.7503,129.03,128.92,123.31]
[1720178516844,19.3735,129.05,128.88,0.2069293]
[1720178516845,19.4951,129.02,128.88,0.2069293]
[1720178517140,7.755,128.95,128.88,0.2069293]
[1720178517356,19.3798,129.0,128.88,0.2069293]
[1720178517558,7.7531,128.99,128.89,7.7583]
[1720178517740,7.7532,128.98,128.88,7.9658293]
[1720178517941,7.7532,128.98,128.88,31.2758293]
[1720178518158,7.7532,128.98,128.88,23.5169293]
[1720178518357,7.7539,128.97,128.88,23.5169293]
[1720178518660,19.3786,129.01,128.88,31.2755293]
[1720178518661,7.7533,128.98,128.88,31.2755293]
[1720178518836,7.7539,128.97,128.88,0.2069293]
[1720178519041,7.7539,128.97,128.88,27.9658293]
[1720178519666,0.17,128.96,128.88,27.9658293]
[1720178520053,0.17,128.97,128.88,27.9658293]
[1720178520253,7.9237,128.97,128.88,27.9658293]
[1720178520843,0.17,128.97,128.88,7.9658293]
[1720178521240,7.9239,128.97,128.88,7.9658293]
[1720178521673,7.9239,128.97,128.88,0.2069293]
[1720178521851,0.17,128.97,128.88,7.9659293]
[1720178522173,0.17,128.97,128.9,7.7577]
[1720178522346,0.17,128.97,128.89,6.1192]
[1720178522669,0.17,128.97,128.89,13.8773]
[1720178522865,0.17,128.98,128.89,13.8773]
[1720178523058,8.06791527,129.04,128.9,43.31]
[1720178523399,8.06791527,129.04,128.93,31.0657]
[1720178523557,7.7503,129.03,128.93,23.31]
[1720178523877,7.7507,129.02,128.92,14.2902]
[1720178524083,7.7503,129.03,128.93,7.7559]
[1720178524264,21.0468334,129.04,128.94,7.7554]
[1720178524566,7.7504,129.03,128.93,31.0658]
[1720178524951,13.2971334,129.04,128.93,31.0658]
[1720178525269,8.06791527,129.04,128.95,7.7545]
[1720178525854,7.7514,129.01,128.92,137.6005]
[1720178526666,0.17,129.0,128.92,29.8439]
[1720178526872,0.17,129.0,128.92,37.6005]
[1720178527782,0.17,129.0,128.93,23.31]
[1720178527965,0.17,129.01,128.93,23.31]
[1720178528166,7.7496,129.04,128.94,23.31]
[1720178528389,7.7496,129.04,128.94,31.0653]
[1720178528585,7.7496,129.04,128.95,7.7548]
[1720178528896,7.7496,129.04,128.95,7.7547]
[1720178529391,8.06747238,129.05,128.96,31.0637]
[1720178529564,7.7478,129.07,128.98,6.1649]
[1720178530089,7.7478,129.07,128.98,13.918]
[1720178530388,7.7478,129.07,128.98,6.1649]
[1720178530575,7.7483,129.06,128.98,6.1649]
[1720178530776,13.3930729,129.08,128.98,6.1649]
[1720178531290,14.42529592,129.12,129.02,7.7502]
[1720178531589,32.6899,129.14,129.05,6.1259]
[1720178531590,7.7436,129.14,129.05,6.1259]
[1720178531808,8.06310769,129.14,129.05,6.1259]
[1720178532092,7.7443,129.13,129.05,6.1259]
[1720178532793,13.3305,129.18,129.06,7.7481]
[1720178532964,7.7425,129.16,129.06,31.0581]
[1720178533578,7.7425,129.16,129.07,7.7475]
[1720178533780,7.7425,129.16,129.06,31.0581]
[1720178534485,7.7445,129.13,129.05,6.1259]
[1720178534691,8.06006588,129.17,129.05,6.1259]
[1720178534875,15.80186588,129.17,129.08,7.747]
[1720178535072,8.06006588,129.17,129.09,7.7464]
[1720178535286,8.06006588,129.17,129.1,7.7457]
[1720178535492,7.7401,129.2,129.11,6.1]
[1720178535702,7.74,129.2,129.11,6.1]
[1720178535904,7.7394,129.21,129.12,107.7447]
[1720178536200,7.7394,129.21,129.12,100.0]
[1720178536572,15.80092106,129.22,129.12,107.7447]
[1720178536896,7.7394,129.21,129.11,37.1552]
[1720178537075,7.7394,129.21,129.12,43.31]
[1720178537281,8.06212106,129.22,129.11,6.1]
[1720178537478,7.7409,129.19,129.11,6.1]
[1720178537896,7.7401,129.2,129.11,6.1]
[1720178538087,13.46053311,129.22,129.11,6.1]
[1720178538088,7.7412,129.18,129.11,6.1]
[1720178538401,0.17,129.19,129.12,7.7446]
[1720178538604,0.17,129.2,129.12,7.7446]
[1720178538892,0.17,129.2,129.11,6.1]
[1720178539084,0.17,129.21,129.11,6.1]
[1720178539486,19.3512,129.2,129.11,6.1]
[1720178539796,7.7419,129.17,129.11,6.1]
[1720178539973,0.17,129.16,129.11,6.1]
[1720178540470,7.7436,129.14,129.08,6.0156]
[1720178540673,7.9142,129.13,129.08,6.0156]
[1720178540883,0.17,129.12,129.08,6.0156]
[1720178541272,7.7415,129.18,129.08,13.7626]
[1720178541468,20.17,129.17,129.08,6.0156]
[1720178541692,7.743,129.15,129.08,6.0156]
[1720178542000,0.17,129.14,129.08,6.0156]
[1720178542409,0.17,129.14,129.08,13.7627]
[1720178543309,0.17,129.14,129.08,13.7623]
[1720178543614,0.17,129.14,129.09,7.7462]
[1720178543814,7.7413,129.18,129.09,7.7464]
[1720178544106,7.9119,129.17,129.08,29.3256]
[1720178544310,0.17,129.17,129.08,6.0156]
[1720178544511,7.7434,129.15,129.08,6.0156]
[1720178544709,0.17,129.14,129.08,6.0156]
[1720178544919,7.7453,129.11,129.05,16.0348]
[1720178545084,7.7448,129.12,129.05,16.0348]
[1720178545289,0.17,129.11,129.05,16.0348]
[1720178545889,0.17,129.11,129.05,23.7833]
[1720178546087,27.7429,129.15,129.05,39.3448]
[1720178546088,8.06044925,129.15,129.05,39.3448]
[1720178546305,0.17,129.14,129.05,39.3448]
[1720178546504,0.17,129.14,129.05,16.0348]
[1720178546794,0.17,129.14,129.06,7.7482]
[1720178547708,8.06044925,129.15,129.07,23.31]
[1720178548014,7.7388,129.22,129.12,7.7446]
[1720178548221,8.05729808,129.23,129.12,7.7445]
[1720178548404,7.7388,129.22,129.12,7.7442]
[1720178548590,7.7382,129.23,129.13,7.744]
[1720178548791,15.79490705,129.23,129.13,7.744]
[1720178549232,8.05670705,129.23,129.11,100.0]
[1720178549391,8.05670705,129.23,129.1,16.1215]
[1720178549593,8.05670705,129.23,129.1,39.4315]
[1720178549895,0.17,129.22,129.1,139.4315]
[1720178550102,0.17,129.22,129.12,23.31]
[1720178550103,7.9088,129.22,129.12,23.31]
[1720178550299,7.9088,129.22,129.12,7.7445]
[1720178551186,7.7396,129.21,129.1,116.1215]
[1720178551392,0.17,129.2,129.11,20.0]
[1720178552207,0.17,129.2,129.11,23.31]
[1720178552516,0.17,129.2,129.13,7.7439]
[1720178552699,0.17,129.21,129.11,23.31]
[1720178553012,20.17,129.21,129.1,16.1215]
[1720178553516,7.7423,129.16,129.1,16.1215]
[1720178553892,0.17,129.15,129.1,16.1215]
[1720178554087,7.9133,129.15,129.08,6.2931]
[1720178554409,7.7439,129.14,129.08,6.2931]
[1720178554607,0.17,129.13,129.08,6.2931]
[1720178555413,0.17,129.13,129.06,15.11]
[1720178555592,6.6634,129.12,129.01,16.3167]
[1720178555793,0.17,129.11,129.01,16.3167]
[1720178556098,20.17,129.11,129.0,6.0619]
[1720178556621,7.7472,129.08,129.0,6.0619]
[1720178556913,0.17,129.07,129.0,6.0619]
[1720178557216,0.17,129.07,129.01,7.7508]
[1720178557418,0.17,129.07,129.0,6.0619]
[1720178557604,0.17,129.07,129.0,13.8137]
[1720178557918,7.918,129.07,129.0,6.0619]
[1720178558217,0.17,129.07,129.0,6.0619]
[1720178558989,27.9176,129.08,129.0,6.0619]
[1720178559211,7.7477,129.07,129.0,6.0619]
[1720178559419,0.17,129.06,128.97,44.5384]
[1720178559596,7.7478,129.07,128.98,7.7531]
[1720178559789,0.17,129.06,128.98,7.7531]
[1720178560317,0.17,129.07,128.98,7.7531]
[1720178561003,7.7483,129.06,128.97,52.292]
[1720178561311,0.17,129.05,128.97,44.5384]
[1720178561490,0.17,129.05,128.97,52.2917]
[1720178561697,0.17,129.05,128.98,100.0]
[1720178562206,0.17,129.05,129.0,7.7518]
[1720178562715,7.7464,129.1,129.0,107.7518]
[1720178562922,0.17,129.09,129.0,107.7518]
[1720178563129,7.9165,129.09,128.99,31.0623]
[1720178563303,7.7471,129.08,128.99,31.0623]
[1720178563506,0.17,129.07,128.99,31.0623]
[1720178563827,0.17,129.07,128.99,23.31]
[1720178564001,0.17,129.07,128.99,31.0621]
[1720178564200,0.17,129.07,129.0,7.7517]
[1720178564399,0.17,129.08,129.0,7.7517]
[1720178565019,0.17,129.09,129.0,7.7517]
[1720178565614,7.9166,129.09,129.0,7.7517]
[1720178566427,7.7472,129.08,128.99,31.0624]
[1720178566618,0.17,129.07,128.99,31.0624]
[1720178566797,7.9167,129.09,128.99,31.0624]
[1720178567002,7.9167,129.09,129.0,107.7519]
[1720178567425,0.17,129.09,129.0,107.7519]
[1720178568932,20.0,129.11,129.02,100.0]
[1720178569407,20.0,129.11,129.03,7.7498]
[1720178569816,14.71971589,129.12,129.04,107.7491]
[1720178570129,19.3564,129.16,129.04,107.7491]
[1720178570130,7.743,129.15,129.05,29.6857]
[1720178570308,14.27854574,129.16,129.06,100.0]
[1720178570514,6.2231,129.16,129.08,7.7467]
[1720178570719,6.2231,129.16,129.06,23.31]
[1720178570919,13.9656,129.16,129.07,27.7476]